fUSD/lending_fUSD_20250530
["ID","MTS","AMOUNT","RATE_DAILY","PERIOD"]
[363068999,1748566245694,-419.11531115,0.00021917,2]
[363069002,1748566245704,-1708.87,0.00021917,2]
[363069005,1748566245713,-5051.34,0.00021917,2]
[363069008,1748566245722,-1084.04,0.00021917,2]
[363069011,1748566245731,-420.0,0.00021917,2]
[363069014,1748566245741,-216.06924505,0.00021917,2]
[363069033,1748566245750,-420.0,0.00021917,2]
[363069036,1748566245834,-420.0,0.00021917,2]
[363069039,1748566245844,-420.0,0.00021917,2]
[363069042,1748566245853,-6141.86,0.00021917,2]
[363069045,1748566245863,-420.0,0.00021917,2]
[363069047,1748566245874,-420.0,0.00021917,2]
[363069049,1748566245883,-420.0,0.00021917,2]
[363069051,1748566245893,-420.0,0.00021917,2]
[363069053,1748566245902,-9634.8,0.00021917,2]
[363069055,1748566245912,-420.0,0.00021917,2]
[363069056,1748566245921,-420.0,0.00021917,2]
[363069057,1748566245930,-420.0,0.00021917,2]
[363069058,1748566245940,-420.0,0.00021917,2]
[363069059,1748566245949,-577.99,0.00021917,2]
[363069060,1748566245958,-868.66,0.00021917,2]
[363069061,1748566245967,-420.0,0.00021917,2]
[363069062,1748566245976,-420.0,0.00021917,2]
[363069064,1748566245985,-420.0,0.00021917,2]
[363069066,1748566245994,-1711.76,0.00021917,2]
[363069068,1748566246003,-420.0,0.00021917,2]
[363069070,1748566246011,-630.69,0.00021917,2]
[363069072,1748566246020,-1184.45,0.00021917,2]
[363069074,1748566246030,-1682.96,0.00021917,2]
[363069076,1748566246039,-420.0,0.00021917,2]
[363069078,1748566246048,-420.0,0.00021917,2]
[363069080,1748566246058,-420.0,0.00021917,2]
[363069082,1748566246067,-420.0,0.00021917,2]
[363069084,1748566246076,-2394.14,0.00021917,2]
[363069086,1748566246086,-1523.44,0.00021917,2]
[363069088,1748566246095,-420.0,0.00021917,2]
[363069090,1748566246105,-420.0,0.00021917,2]
[363069092,1748566246116,-1240.6,0.00021917,2]
[363069094,1748566246125,-595.58,0.00021917,2]
[363069096,1748566246135,-420.0,0.00021917,2]
[363069098,1748566246144,-378.35843047,0.00021917,2]
[363069100,1748566246153,-632.24,0.00021917,2]
[363069102,1748566246163,-1258.81,0.00021917,2]
[363069104,1748566246172,-1969.58,0.00021917,2]
[363069106,1748566246182,-151.45216591,0.00021917,2]
[363069108,1748566246191,-7208.94,0.00021917,2]
[363069110,1748566246200,-420.0,0.00021917,2]
[363069112,1748566246210,-254.62607033,0.00021917,2]
[363069115,1748566246219,-420.0,0.00021917,2]
[363069116,1748566246229,-420.0,0.00021917,2]
[363069118,1748566246238,-420.0,0.00021917,2]
[363069120,1748566246247,-420.0,0.00021917,2]
[363069122,1748566246255,-2936.98,0.00021917,2]
[363069124,1748566246264,-420.0,0.00021917,2]
[363069126,1748566246273,-420.0,0.00021917,2]
[363069128,1748566246282,-420.0,0.00021917,2]
[363069130,1748566246291,-420.0,0.00021917,2]
[363069132,1748566246300,-420.0,0.00021917,2]
[363069134,1748566246309,-420.0,0.00021917,2]
[363069136,1748566246318,-1450.91,0.00021917,2]
[363069138,1748566246327,-3433.29,0.00021917,2]
[363069140,1748566246336,-553.08052169,0.00021917,2]
[363069142,1748566246345,-420.0,0.00021917,2]
[363069144,1748566246354,-1601.91,0.00021917,2]
[363069146,1748566246364,-876.52,0.00021917,2]
[363069149,1748566246376,-1236.87,0.00021917,2]
[363069150,1748566246386,-699.65,0.00021917,2]
[363069153,1748566246395,-483.29,0.00021917,2]
[363069154,1748566246405,-420.0,0.00021917,2]
[363069156,1748566246414,-8499.93,0.00021917,2]
[363069158,1748566246423,-713.86,0.00021917,2]
[363069160,1748566246432,-550.69418532,0.00021917,2]
[363069162,1748566246442,-428.14315489,0.00021917,2]
[363069165,1748566246451,-3585.09,0.00021917,2]
[363069167,1748566246460,-420.0,0.00021917,2]
[363069169,1748566246470,-631.6,0.00021917,2]
[363069170,1748566246479,-3266.53,0.00021917,2]
[363069172,1748566246488,-276.3946539,0.00021917,2]
[363069174,1748566246497,-420.0,0.00021917,2]
[363069176,1748566246507,-420.0,0.00021917,2]
[363069178,1748566246517,-783.16,0.00021917,2]
[363069180,1748566246526,-1007.12,0.00021917,2]
[363069182,1748566246535,-420.0,0.00021917,2]
[363069184,1748566246544,-420.0,0.00021917,2]
[363069186,1748566246554,-2205.34,0.00021917,2]
[363069188,1748566246563,-420.0,0.00021917,2]
[363069190,1748566246573,-420.0,0.00021917,2]
[363069192,1748566246585,-4062.67,0.00021917,2]
[363069194,1748566246594,-300.0,0.00021917,2]
[363069197,1748566246603,-955.23,0.00021917,2]
[363069200,1748566246612,-4613.83,0.00021917,2]
[363069202,1748566246625,-651.69,0.00021917,2]
[363069205,1748566246634,-420.0,0.00021917,2]
[363069207,1748566246643,-420.0,0.00021917,2]
[363069209,1748566246651,-420.0,0.00021917,2]
[363069211,1748566246662,-451.23,0.00021917,2]
[363069213,1748566246671,-4723.35,0.00021917,2]
[363069215,1748566246679,-1905.74,0.00021917,2]
[363069217,1748566246689,-420.0,0.00021917,2]
[363069219,1748566246698,-957.09,0.00021917,2]
[363069221,1748566246707,-420.0,0.00021917,2]
[363069223,1748566246716,-790.03,0.00021917,2]
[363069225,1748566246725,-9010.04,0.00021917,2]
[363069227,1748566246735,-420.0,0.00021917,2]
[363069229,1748566246744,-1211.81,0.00021917,2]
[363069231,1748566246754,-420.0,0.00021917,2]
[363069233,1748566246764,-3059.79,0.00021917,2]
[363069235,1748566246774,-1427.31,0.00021917,2]
[363069237,1748566246783,-1546.26,0.00021917,2]
[363069239,1748566246792,-450.65,0.00021917,2]
[363069241,1748566246801,-420.0,0.00021917,2]
[363069242,1748566246810,-420.0,0.00021917,2]
[363069244,1748566246819,-420.0,0.00021917,2]
[363069246,1748566246829,-472.8,0.00021917,2]
[363069248,1748566246839,-4048.71,0.00021917,2]
[363069250,1748566246848,-420.0,0.00021917,2]
[363069252,1748566246858,-420.0,0.00021917,2]
[363069254,1748566246870,-5224.5,0.00021917,2]
[363069256,1748566246880,-798.61,0.00021917,2]
[363069258,1748566246889,-1806.77,0.00021917,2]
[363069260,1748566246898,-420.0,0.00021917,2]
[363069262,1748566246907,-173533.03,0.00021917,2]
[363069264,1748566246917,-420.0,0.00021917,2]
[363069266,1748566246927,-420.0,0.00021917,2]
[363069268,1748566246936,-420.0,0.00021917,2]
[363069270,1748566246945,-420.0,0.00021917,2]
[363069272,1748566246954,-420.0,0.00021917,2]
[363069274,1748566246963,-420.0,0.00021917,2]
[363069276,1748566246973,-420.0,0.00021917,2]
[363069278,1748566246983,-420.0,0.00021917,2]
[363069280,1748566246992,-420.0,0.00021917,2]
[363069282,1748566247001,-420.0,0.00021917,2]
[363069284,1748566247010,-807.87,0.00021917,2]
[363069286,1748566247020,-1867.03,0.00021917,2]
[363069288,1748566247029,-420.0,0.00021917,2]
[363069290,1748566247038,-420.0,0.00021917,2]
[363069292,1748566247047,-14157.24,0.00021917,2]
[363069294,1748566247056,-3790.39,0.00021917,2]
[363069296,1748566247065,-420.0,0.00021917,2]
[363069298,1748566247075,-420.0,0.00021917,2]
[363069300,1748566247084,-4259.3,0.00021917,2]
[363069302,1748566247094,-420.0,0.00021917,2]
[363069304,1748566247104,-420.0,0.00021917,2]
[363069306,1748566247113,-420.0,0.00021917,2]
[363069308,1748566247127,-420.0,0.00021917,2]
[363069309,1748566247136,-629.39,0.00021917,2]
[363069311,1748566247146,-420.0,0.00021917,2]
[363069313,1748566247155,-420.0,0.00021917,2]
[363069315,1748566247164,-2164.73,0.00021917,2]
[363069317,1748566247173,-1413.54,0.00021917,2]
[363069319,1748566247182,-985.66,0.00021917,2]
[363069321,1748566247191,-420.0,0.00021917,2]
[363069323,1748566247200,-393.18861158,0.00021917,2]
[363069325,1748566247210,-603.29,0.00021917,2]
[363069327,1748566247220,-6657.52,0.00021917,2]
[363069329,1748566247229,-9966.66,0.00021917,2]
[363069331,1748566247237,-770.68,0.00021917,2]
[363069333,1748566247246,-420.0,0.00021917,2]
[363069335,1748566247255,-420.0,0.00021917,2]
[363069337,1748566247265,-420.0,0.00021917,2]
[363069338,1748566247274,-420.0,0.00021917,2]
[363069340,1748566247284,-420.0,0.00021917,2]
[363069342,1748566247293,-1166.91,0.00021917,2]
[363069344,1748566247303,-425.31478225,0.00021917,2]
[363069347,1748566247312,-420.0,0.00021917,2]
[363069348,1748566247322,-420.0,0.00021917,2]
[363069350,1748566247331,-420.0,0.00021917,2]
[363069353,1748566247342,-4030.6,0.00021917,2]
[363069355,1748566247351,-1148.65,0.00021917,2]
[363069357,1748566247361,-1132.96,0.00021917,2]
[363069359,1748566247375,-2938.43,0.00021917,2]
[363069361,1748566247383,-420.0,0.00021917,2]
[363069363,1748566247393,-420.0,0.00021917,2]
[363069365,1748566247403,-1049.5,0.00021917,2]
[363069367,1748566247412,-26077.02,0.00021917,2]
[363069369,1748566247422,-420.0,0.00021917,2]
[363069371,1748566247431,-420.0,0.00021917,2]
[363069372,1748566247440,-420.0,0.00021917,2]
[363069375,1748566247450,-428.48,0.00021917,2]
[363069376,1748566247460,-420.0,0.00021917,2]
[363069379,1748566247470,-420.0,0.00021917,2]
[363069380,1748566247479,-284.00012865,0.00021917,2]
[363069382,1748566247489,-3317.28,0.00021917,2]
[363069384,1748566247499,-420.0,0.00021917,2]
[363069386,1748566247509,-1147.03,0.00021917,2]
[363069388,1748566247518,-420.0,0.00021917,2]
[363069390,1748566247528,-420.0,0.00021917,2]
[363069392,1748566247537,-1485.67,0.00021917,2]
[363069394,1748566247547,-420.0,0.00021917,2]
[363069396,1748566247556,-420.0,0.00021917,2]
[363069398,1748566247565,-420.0,0.00021917,2]
[363069400,1748566247575,-930.69,0.00021917,2]
[363069402,1748566247588,-820.71,0.00021917,2]
[363069404,1748566247598,-741.6,0.00021917,2]
[363069406,1748566247607,-615.64,0.00021917,2]
[363069408,1748566247619,-420.0,0.00021917,2]
[363069410,1748566247629,-566.19,0.00021917,2]
[363069412,1748566247638,-1563.25,0.00021917,2]
[363069414,1748566247648,-420.0,0.00021917,2]
[363069416,1748566247659,-420.0,0.00021917,2]
[363069418,1748566247669,-752.71,0.00021917,2]
[363069420,1748566247678,-420.0,0.00021917,2]
[363069422,1748566247687,-420.0,0.00021917,2]
[363069424,1748566247697,-420.0,0.00021917,2]
[363069426,1748566247706,-420.0,0.00021917,2]
[363069428,1748566247716,-420.0,0.00021917,2]
[363069430,1748566247725,-657.06,0.00021917,2]
[363069432,1748566247735,-420.0,0.00021917,2]
[363069434,1748566247744,-420.0,0.00021917,2]
[363069436,1748566247754,-420.0,0.00021917,2]
[363069438,1748566247763,-1102.64,0.00021917,2]
[363069440,1748566247773,-420.0,0.00021917,2]
[363069442,1748566247783,-420.0,0.00021917,2]
[363069444,1748566247792,-420.0,0.00021917,2]
[363069446,1748566247801,-425.70913564,0.00021917,2]
[363069448,1748566247810,-420.0,0.00021917,2]
[363069449,1748566247820,-420.0,0.00021917,2]
[363069451,1748566247829,-165.674502,0.00021917,2]
[363069453,1748566247839,-1645.23,0.00021917,2]
[363069455,1748566247848,-420.0,0.00021917,2]
[363069457,1748566247857,-761.81,0.00021917,2]
[363069459,1748566247867,-2941.07,0.00021917,2]
[363069461,1748566247877,-420.0,0.00021917,2]
[363069463,1748566247886,-420.0,0.00021917,2]
[363069465,1748566247896,-420.0,0.00021917,2]
[363069467,1748566247906,-420.0,0.00021917,2]
[363069469,1748566247915,-907.23,0.00021917,2]
[363069471,1748566247925,-4988.67,0.00021917,2]
[363069473,1748566247934,-420.0,0.00021917,2]
[363069475,1748566247943,-420.0,0.00021917,2]
[363069477,1748566247953,-505.20144136,0.00021917,2]
[363069479,1748566247963,-420.0,0.00021917,2]
[363069481,1748566247973,-420.0,0.00021917,2]
[363069483,1748566247983,-422.59558202,0.00021917,2]
[363069485,1748566247992,-594.12,0.00021917,2]
[363069487,1748566248002,-500.0,0.00021917,2]
[363069489,1748566248012,-420.0,0.00021917,2]
[363069491,1748566248022,-437.34,0.00021917,2]
[363069493,1748566248032,-420.0,0.00021917,2]
[363069495,1748566248042,-420.0,0.00021917,2]
[363069497,1748566248052,-489.91,0.00021917,2]
[363069499,1748566248062,-357.23469482,0.00021917,2]
[363069501,1748566248072,-428.41273044,0.00021917,2]
[363069503,1748566248081,-567.39,0.00021917,2]
[363069505,1748566248091,-420.0,0.00021917,2]
[363069507,1748566248101,-420.0,0.00021917,2]
[363069509,1748566248111,-420.0,0.00021917,2]
[363069511,1748566248123,-962.72,0.00021917,2]
[363069513,1748566248134,-859.22,0.00021917,2]
[363069515,1748566248144,-420.0,0.00021917,2]
[363069517,1748566248155,-2381.68,0.00021917,2]
[363069519,1748566248166,-420.0,0.00021917,2]
[363069521,1748566248176,-2999.94,0.00021917,2]
[363069523,1748566248186,-435.18111297,0.00021917,2]
[363069525,1748566248196,-379.96419233,0.00021917,2]
[363069527,1748566248206,-420.0,0.00021917,2]
[363069529,1748566248216,-420.0,0.00021917,2]
[363069531,1748566248226,-429.59127863,0.00021917,2]
[363069533,1748566248235,-420.0,0.00021917,2]
[363069535,1748566248245,-420.0,0.00021917,2]
[363069537,1748566248254,-1510.88,0.00021917,2]
[363069539,1748566248264,-420.0,0.00021917,2]
[363069541,1748566248274,-420.0,0.00021917,2]
[363069543,1748566248284,-420.0,0.00021917,2]
[363069545,1748566248294,-420.0,0.00021917,2]
[363069547,1748566248304,-1085.98,0.00021917,2]
[363069549,1748566248314,-420.0,0.00021917,2]
[363069551,1748566248323,-987.49,0.00021917,2]
[363069553,1748566248334,-420.0,0.00021917,2]
[363069555,1748566248344,-4437.4,0.00021917,2]
[363069557,1748566248354,-420.0,0.00021917,2]
[363069559,1748566248364,-420.0,0.00021917,2]
[363069561,1748566248375,-1771.37,0.00021917,2]
[363069563,1748566248385,-420.0,0.00021917,2]
[363069565,1748566248395,-43290.53,0.00021917,2]
[363069567,1748566248406,-3037.21,0.00021917,2]
[363069569,1748566248416,-1564.95,0.00021917,2]
[363069571,1748566248425,-2956.09,0.00021917,2]
[363069573,1748566248435,-841.05,0.00021917,2]
[363069575,1748566248444,-7243.26,0.00021917,2]
[363069577,1748566248454,-420.0,0.00021917,2]
[363069579,1748566248464,-420.0,0.00021917,2]
[363069581,1748566248473,-420.0,0.00021917,2]
[363069583,1748566248483,-1556.17,0.00021917,2]
[363069585,1748566248493,-422.4912375,0.00021917,2]
[363069587,1748566248503,-1129.3,0.00021917,2]
[363069590,1748566248513,-742.64,0.00021917,2]
[363069592,1748566248523,-515.1,0.00021917,2]
[363069594,1748566248533,-420.0,0.00021917,2]
[363069595,1748566248544,-420.0,0.00021917,2]
[363069597,1748566248553,-420.0,0.00021917,2]
[363069600,1748566248564,-420.0,0.00021917,2]
[363069602,1748566248574,-642.97,0.00021917,2]
[363069603,1748566248587,-6368.97,0.00021917,2]
[363069605,1748566248597,-420.0,0.00021917,2]
[363069608,1748566248608,-420.0,0.00021917,2]
[363069610,1748566248620,-420.0,0.00021917,2]
[363069612,1748566248631,-1202.04,0.00021917,2]
[363069614,1748566248640,-420.0,0.00021917,2]
[363069616,1748566248650,-423.40748256,0.00021917,2]
[363069618,1748566248660,-420.0,0.00021917,2]
[363069620,1748566248670,-8345.77,0.00021917,2]
[363069621,1748566248680,-561.75,0.00021917,2]
[363069624,1748566248691,-420.0,0.00021917,2]
[363069626,1748566248701,-420.0,0.00021917,2]
[363069627,1748566248710,-420.0,0.00021917,2]
[363069628,1748566248719,-1135.82,0.00021917,2]
[363069629,1748566248730,-1945.27,0.00021917,2]
[363069630,1748566248739,-1916.33,0.00021917,2]
[363069631,1748566248749,-420.0,0.00021917,2]
[363069632,1748566248759,-573.98,0.00021917,2]
[363069633,1748566248769,-2927.62,0.00021917,2]
[363069634,1748566248778,-420.0,0.00021917,2]
[363069635,1748566248787,-3332.51360038,0.00021939,2]
[363069636,1748566248797,-166.67,0.00021966,2]
[363069637,1748566248806,-3327.20254796,0.00021966,2]
[363069638,1748566248816,-1237.09608,0.0002197,2]
[363069640,1748566248826,-1237.09608,0.0002197,2]
[363069642,1748566248836,-1237.09608,0.0002197,2]
[363069644,1748566248846,-1237.09608,0.0002197,2]
[363069646,1748566248855,-500.0,0.00021973,2]
[363069648,1748566248867,-500.0,0.00021973,2]
[363069650,1748566248877,-500.0,0.00021973,2]
[363069652,1748566248887,-3332.51360038,0.00022,2]
[363069654,1748566248898,-1000.0,0.00022,3]
[363069656,1748566248908,-972.24717881,0.00022,4]
[363069658,1748566248918,-157.0,0.00022,2]
[363069660,1748566248928,-359.0,0.00022,2]
[363069662,1748566248938,-152.0,0.00022,2]
[363069664,1748566248948,-200.0,0.00022,2]
[363069666,1748566248958,-3327.20254796,0.00022016,2]
[363069668,1748566248968,-169.0706662,0.00022024,2]
[363069670,1748566248978,-265.52077866,0.00022026,2]
[363069673,1748566248989,-1612.72,0.00022055,2]
[363069675,1748566248998,-806.36,0.00022055,2]
[363069677,1748566249008,-806.36,0.00022055,2]
[363069679,1748566249018,-3332.51360038,0.00022061,2]
[363069681,1748566249027,-3327.20254796,0.00022065,2]
[363069683,1748566249037,-1550.79,0.0002209,2]
[363069685,1748566249047,-9730.45,0.0002209,2]
[363069687,1748566249057,-998.74,0.0002209,2]
[363069689,1748566249067,-2095.06,0.0002209,2]
[363069691,1748566249077,-28979.02,0.0002209,2]
[363069693,1748566249087,-718.32,0.0002209,2]
[363069695,1748566249097,-3599.51,0.0002209,2]
[363069697,1748566249107,-2064.34,0.0002209,2]
[363069699,1748566249117,-1768.49,0.0002209,2]
[363069701,1748566249127,-1050.0,0.000221,2]
[363069703,1748566249136,-3327.20254796,0.00022115,2]
[363069705,1748566249146,-3332.51360038,0.00022121,2]
[363069707,1748566249156,-1313.0,0.00022124,2]
[363069709,1748566249166,-966.493,0.00022124,2]
[363069711,1748566249176,-800.0,0.00022124,2]
[363069713,1748566249186,-634.0,0.00022124,2]
[363069715,1748566249196,-924.0,0.00022124,2]
[363069717,1748566249206,-556.0,0.00022124,2]
[363069719,1748566249215,-587.0,0.00022124,2]
[363069721,1748566249225,-1267.0,0.00022124,2]
[363069723,1748566249235,-1465.0,0.00022124,2]
[363069725,1748566249245,-847.0,0.00022124,2]
[363069727,1748566249255,-155.0,0.00022124,2]
[363069729,1748566249265,-4066.0,0.00022124,2]
[363069731,1748566249276,-6926.0,0.00022124,2]
[363069733,1748566249285,-156.25191989,0.00022125,2]
[363069735,1748566249296,-150.053002,0.00022128,3]
[363069737,1748566249306,-150.053002,0.00022138,3]
[363069739,1748566249315,-150.05300299,0.00022146,3]
[363069742,1748566249325,-150.053002,0.00022147,3]
[363069744,1748566249335,-150.053002,0.00022148,3]
[363069746,1748566249345,-3327.20254796,0.00022165,2]
[363069748,1748566249356,-500.0,0.00022173,2]
[363069750,1748566249367,-321.58325899,0.00022173,2]
[363069752,1748566249377,-191.57200987,0.00022173,2]
[363069754,1748566249387,-500.65615508,0.00022173,2]
[363069756,1748566249397,-500.41109607,0.00022173,2]
[363069758,1748566249407,-500.0,0.00022173,2]
[363069760,1748566249417,-500.0,0.00022173,2]
[363069762,1748566249427,-500.0,0.00022173,2]
[363069764,1748566249437,-627.55871033,0.00022173,2]
[363069766,1748566249447,-500.0,0.00022173,2]
[363069768,1748566249457,-500.0,0.00022173,2]
[363069770,1748566249466,-500.0,0.00022173,2]
[363069772,1748566249475,-602.21075139,0.00022173,2]
[363069774,1748566249485,-500.0,0.00022173,2]
[363069776,1748566249495,-500.0,0.00022173,2]
[363069778,1748566249505,-500.0,0.00022173,2]
[363069780,1748566249515,-500.0,0.00022173,2]
[363069783,1748566249525,-416.25532239,0.00022173,2]
[363069785,1748566249535,-500.0,0.00022173,2]
[363069787,1748566249545,-500.0,0.00022173,2]
[363069789,1748566249555,-3332.51360038,0.00022182,2]
[363069791,1748566249565,-9064.181898,0.00022185,2]
[363069793,1748566249575,-500.0,0.0002219,2]
[363069795,1748566249588,-500.0,0.0002219,2]
[363069797,1748566249597,-500.0,0.0002219,2]
[363069799,1748566249607,-500.0,0.0002219,2]
[363069801,1748566249616,-167.35499006,0.0002219,2]
[363069803,1748566249626,-508.22,0.0002219,2]
[363069805,1748566249635,-508.22,0.0002219,2]
[363069807,1748566249645,-508.22,0.0002219,2]
[363069809,1748566249654,-508.22,0.0002219,2]
[363069811,1748566249668,-1237.09608,0.0002219,2]
[363069813,1748566249678,-1237.09609,0.0002219,2]
[363069815,1748566249688,-151.0,0.00022191,7]
[363069817,1748566249697,-420.0,0.00022191,2]
[363069820,1748566249707,-420.0,0.00022191,2]
[363069822,1748566249718,-420.0,0.00022191,2]
[363069824,1748566249728,-420.0,0.00022191,2]
[363069826,1748566249738,-293.81414569,0.00022191,2]
[363069828,1748566249748,-420.0,0.00022191,2]
[363069830,1748566249758,-420.0,0.00022191,2]
[363069832,1748566249768,-420.0,0.00022191,2]
[363069834,1748566249778,-151.0,0.00022191,7]
[363069836,1748566249787,-535.59359679,0.00022191,2]
[363069838,1748566249797,-420.0,0.00022191,2]
[363069840,1748566249807,-420.0,0.00022191,2]
[363069842,1748566249817,-420.0,0.00022191,2]
[363069844,1748566249826,-420.0,0.00022191,2]
[363069846,1748566249837,-420.0,0.00022191,2]
[363069848,1748566249847,-151.0,0.00022191,7]
[363069851,1748566249857,-420.0,0.00022191,2]
[363069853,1748566249868,-420.0,0.00022191,2]
[363069855,1748566249877,-420.0,0.00022191,2]
[363069857,1748566249889,-420.0,0.00022191,2]
[363069859,1748566249899,-420.0,0.00022191,2]
[363069861,1748566249908,-420.0,0.00022191,2]
[363069863,1748566249918,-420.0,0.00022191,2]
[363069865,1748566249931,-420.0,0.00022191,2]
[363069867,1748566249941,-473.7899379,0.00022191,2]
[363069869,1748566249950,-420.0,0.00022191,2]
[363069871,1748566249960,-420.0,0.00022191,2]
[363069873,1748566249969,-549.19,0.00022191,2]
[363069875,1748566249978,-543.75536129,0.00022191,2]
[363069877,1748566249988,-420.0,0.00022191,2]
[363069879,1748566249998,-561.29,0.00022191,2]
[363069881,1748566250009,-420.0,0.00022191,2]
[363069883,1748566250019,-420.0,0.00022191,2]
[363069885,1748566250029,-420.0,0.00022191,2]
[363069888,1748566250040,-487.7,0.00022191,2]
[363069890,1748566250050,-420.0,0.00022191,2]
[363069892,1748566250064,-420.0,0.00022191,2]
[363069894,1748566250075,-324.65831259,0.00022191,2]
[363069917,1748566250313,-560.85,0.00022191,2]
[363069920,1748566250326,-420.0,0.00022191,2]
[363069922,1748566250336,-742.36,0.00022191,2]
[363069924,1748566250346,-1000.0,0.00022191,2]
[363069925,1748566250355,-512.81,0.00022191,2]
[363069927,1748566250365,-1198.08,0.00022191,2]
[363069930,1748566250385,-420.0,0.00022191,2]
[363069932,1748566250396,-420.0,0.00022191,2]
[363069933,1748566250406,-420.0,0.00022191,2]
[363069936,1748566250416,-393.99941544,0.00022191,2]
[363069938,1748566250426,-420.0,0.00022191,2]
[363069940,1748566250435,-420.0,0.00022191,2]
[363069942,1748566250445,-420.0,0.00022191,2]
[363069944,1748566250454,-420.0,0.00022191,2]
[363069946,1748566250464,-484.45,0.00022191,2]
[363069948,1748566250474,-420.0,0.00022191,2]
[363069950,1748566250483,-495.36,0.00022191,2]
[363069952,1748566250493,-517.59,0.00022191,2]
[363069954,1748566250502,-420.0,0.00022191,2]
[363069956,1748566250512,-420.0,0.00022191,2]
[363069958,1748566250521,-420.0,0.00022191,2]
[363069960,1748566250530,-457.70667437,0.00022191,2]
[363069962,1748566250540,-420.0,0.00022191,2]
[363069964,1748566250548,-420.0,0.00022191,2]
[363069966,1748566250557,-789.61,0.00022191,2]
[363069968,1748566250566,-420.0,0.00022191,2]
[363069970,1748566250575,-504.43091744,0.00022191,2]
[363069972,1748566250588,-420.0,0.00022191,2]
[363069974,1748566250599,-420.0,0.00022191,2]
[363069976,1748566250608,-420.0,0.00022191,2]
[363069978,1748566250622,-794.14,0.00022191,2]
[363069980,1748566250631,-420.0,0.00022191,2]
[363069981,1748566250641,-518.52172072,0.00022191,2]
[363069983,1748566250650,-420.0,0.00022191,2]
[363069985,1748566250659,-420.0,0.00022191,2]
[363069987,1748566250670,-420.0,0.00022191,2]
[363069989,1748566250679,-435.76487929,0.00022191,2]
[363069991,1748566250689,-763.72,0.00022191,2]
[363069993,1748566250698,-420.0,0.00022191,2]
[363069995,1748566250707,-420.0,0.00022191,2]
[363069998,1748566250727,-420.0,0.00022191,2]
[363070000,1748566250738,-625.4,0.00022191,2]
[363070003,1748566250748,-420.0,0.00022191,2]
[363070005,1748566250758,-420.0,0.00022191,2]
[363070007,1748566250768,-420.0,0.00022191,2]
[363070009,1748566250779,-511.83,0.00022191,2]
[363070011,1748566250788,-420.0,0.00022191,2]
[363070013,1748566250798,-167.27599651,0.00022191,2]
[363070015,1748566250808,-420.0,0.00022191,2]
[363070017,1748566250819,-204.09837694,0.00022191,2]
[363070019,1748566250828,-420.0,0.00022191,2]
[363070021,1748566250838,-420.0,0.00022191,2]
[363070023,1748566250848,-420.0,0.00022191,2]
[363070025,1748566250858,-420.0,0.00022191,2]
[363070027,1748566250871,-420.0,0.00022191,2]
[363070029,1748566250882,-500.8,0.00022191,2]
[363070032,1748566250892,-420.0,0.00022191,2]
[363070034,1748566250902,-420.0,0.00022191,2]